bitfinex/quotes_BTCUSD_20241025
["timestamp","ask_amount","ask_price","bid_price","bid_amount"]
[1729859211944,0.15450381,68084.0,68083.0,0.0045922]
[1729859211945,0.40266984,68084.0,68083.0,0.0045922]
[1729859212143,0.39998081,68084.0,68083.0,0.0045922]
[1729859212580,0.40162881,68084.0,68083.0,0.0045922]
[1729859212820,0.30302881,68084.0,68083.0,0.0045922]
[1729859213024,0.30571784,68084.0,68083.0,0.0045922]
[1729859214148,0.15615181,68084.0,68083.0,0.12402236]
[1729859214367,0.15615181,68084.0,68083.0,0.124023]
[1729859217911,0.005648,68084.0,68083.0,0.124023]
[1729859218816,0.005648,68084.0,68083.0,0.134023]
[1729859219249,0.005648,68084.0,68083.0,0.01976986]
[1729859224829,0.005648,68084.0,68083.0,0.01517702]
[1729859225041,0.005648,68084.0,68083.0,0.01976947]
[1729859226174,0.005648,68084.0,68083.0,0.01476947]
[1729859226808,0.005648,68084.0,68083.0,0.00976947]
[1729859229216,0.15615181,68084.0,68083.0,0.00976947]
[1729859229421,0.30302881,68084.0,68083.0,0.00959245]
[1729859230913,0.30302881,68084.0,68083.0,0.00976947]
[1729859231135,0.15615181,68084.0,68083.0,0.00959245]
[1729859231394,0.30302881,68084.0,68083.0,0.00959245]
[1729859232247,0.15615181,68084.0,68083.0,0.00959245]
[1729859233366,0.15615181,68084.0,68083.0,0.00976947]
[1729859236161,0.39362881,68084.0,68083.0,0.00959245]
[1729859236367,0.15615181,68084.0,68083.0,0.09829245]
[1729859236899,0.15615181,68084.0,68083.0,0.01959245]
[1729859237363,0.15615181,68084.0,68083.0,0.01976947]
[1729859237579,0.15615181,68084.0,68083.0,0.02711792]
[1729859238884,0.30302881,68084.0,68083.0,0.01194121]
[1729859239161,0.40531784,68084.0,68083.0,0.00459277]
[1729859239381,0.40262881,68084.0,68083.0,0.00459277]
[1729859239592,0.54950681,68084.0,68079.0,0.005]
[1729859239815,0.15050381,68083.0,68080.0,0.00459306]
[1729859240020,0.146883,68081.0,68078.0,0.015824]
[1729859240227,0.15050381,68080.0,68079.0,0.01194198]
[1729859240461,0.15050381,68080.0,68079.0,0.00459307]
[1729859240889,0.29738981,68080.0,68079.0,0.00477009]
[1729859241095,0.15050381,68080.0,68079.0,0.00477009]
[1729859241732,0.15050381,68080.0,68079.0,0.01211897]
[1729859245365,0.29738981,68080.0,68079.0,0.01194195]
[1729859245584,0.15050381,68080.0,68079.0,0.01194195]
[1729859245837,0.15050381,68080.0,68079.0,0.01211897]
[1729859246042,0.15050381,68080.0,68079.0,0.00017702]
[1729859246259,0.15050381,68080.0,68079.0,0.01211899]
[1729859249513,0.29738981,68080.0,68079.0,0.01211899]
[1729859249747,0.15050381,68080.0,68079.0,0.01211899]
[1729859250876,0.37808981,68080.0,68079.0,0.00459306]
[1729859251106,0.49268981,68080.0,68079.0,0.00459306]
[1729859251318,0.49268981,68080.0,68078.0,0.000824]
[1729859251319,0.146888,68079.0,68078.0,0.000824]
[1729859251535,0.146888,68079.0,68078.0,0.00541737]
[1729859251536,0.30008084,68079.0,68078.0,0.00541737]
[1729859251766,0.30008084,68079.0,68078.0,0.000824]
[1729859253209,0.30008084,68079.0,68078.0,0.00541736]
[1729859253644,0.30008084,68079.0,68078.0,0.000824]
[1729859253862,0.30008084,68079.0,68078.0,0.00541734]
[1729859254342,0.15050381,68079.0,68078.0,0.15748436]
[1729859254792,0.15050381,68079.0,68078.0,0.16483322]
[1729859255017,0.15050381,68079.0,68078.0,0.01794322]
[1729859255699,0.152525,68084.0,68083.0,0.00017702]
[1729859255910,0.30302881,68084.0,68083.0,0.00477036]
[1729859256355,0.005648,68084.0,68083.0,0.00977036]
[1729859258532,0.152525,68084.0,68083.0,0.01711884]
[1729859264372,0.152525,68084.0,68083.0,0.01711801]
[1729859271088,0.152525,68084.0,68083.0,0.00976971]
[1729859271342,0.152525,68084.0,68083.0,0.005]
[1729859271545,0.152525,68084.0,68083.0,0.00959289]
[1729859271751,0.152525,68084.0,68083.0,0.01418578]
[1729859272195,0.152525,68084.0,68083.0,0.00959289]
[1729859274053,0.152525,68084.0,68083.0,0.0169415]
[1729859274717,0.152525,68084.0,68083.0,0.00959289]
[1729859274949,0.30302881,68084.0,68083.0,0.00459289]
[1729859275169,0.30302881,68084.0,68083.0,0.00459308]
[1729859275416,0.30571784,68084.0,68083.0,0.00459308]
[1729859275639,0.146888,68079.0,68078.0,0.005824]
[1729859275863,0.29739181,68079.0,68078.0,0.19206621]
[1729859277509,0.29739181,68079.0,68078.0,0.19224323]
[1729859279346,0.29739181,68079.0,68078.0,0.19206621]
[1729859280739,0.29739181,68079.0,68078.0,0.09316621]
[1729859281181,0.29739181,68079.0,68078.0,0.09316604]
[1729859282111,0.29739181,68079.0,68078.0,0.09334306]
[1729859283923,0.15050381,68079.0,68078.0,0.09334306]
[1729859284207,0.29739181,68079.0,68078.0,0.09334306]
[1729859284417,0.29739181,68079.0,68078.0,0.09334259]
[1729859285061,0.29739181,68079.0,68078.0,0.09316557]
[1729859285336,0.29739181,68079.0,68078.0,0.09334259]
[1729859286395,0.146881,68082.0,68081.0,0.00517702]
[1729859286607,0.29738481,68082.0,68081.0,0.00976993]
[1729859287260,0.29738481,68082.0,68081.0,0.00959291]
[1729859287473,0.29738481,68082.0,68081.0,0.00976993]
[1729859287696,0.29738481,68082.0,68081.0,0.00959291]
[1729859288992,0.29738481,68082.0,68081.0,0.01694181]
[1729859290684,0.29738481,68082.0,68081.0,0.01194181]
[1729859291478,0.29738481,68082.0,68081.0,0.01694181]
[1729859291753,0.29738481,68082.0,68081.0,0.01694189]
[1729859292183,0.29738481,68082.0,68081.0,0.01711891]
[1729859292625,0.29738481,68082.0,68081.0,0.01694189]
[1729859292886,0.29738481,68082.0,68081.0,0.01194189]
[1729859293107,0.30007384,68082.0,68081.0,0.01194189]
[1729859293542,0.30007384,68082.0,68081.0,0.00459303]
[1729859293966,0.39137384,68082.0,68081.0,0.00459303]
[1729859294231,0.24180381,68082.0,68078.0,0.000824]
[1729859294459,0.33664114,68079.0,68078.0,0.000824]
[1729859294662,0.48714495,68079.0,68078.0,0.00541752]
[1729859294872,0.48714495,68079.0,68078.0,0.000824]
[1729859298381,0.37289181,68079.0,68078.0,0.000824]
[1729859298830,0.46309181,68079.0,68078.0,0.000824]
[1729859302580,0.48366001,68079.0,68078.0,0.000824]
[1729859305548,0.29739181,68079.0,68078.0,0.11507714]
[1729859305757,0.15050381,68079.0,68078.0,0.19627023]
[1729859306421,0.14550381,68079.0,68078.0,0.20361918]
[1729859306634,0.14715381,68079.0,68078.0,0.20361918]
[1729859306891,0.14715381,68079.0,68078.0,0.2037962]
[1729859307107,0.29404181,68079.0,68078.0,0.19644725]
[1729859307535,0.29404181,68079.0,68078.0,0.08219411]
[1729859313437,0.00165,68079.0,68078.0,0.19685416]
[1729859313687,0.148538,68079.0,68078.0,0.20144725]
[1729859313908,0.148538,68079.0,68078.0,0.08719411]
[1729859316794,0.00165,68079.0,68078.0,0.08719411]
[1729859317002,0.00165,68079.0,68078.0,0.20127023]
[1729859317209,0.00165,68079.0,68078.0,0.20144725]
[1729859317674,0.148538,68079.0,68078.0,0.08719411]
[1729859320368,0.148538,68079.0,68078.0,0.08719397]
[1729859327445,0.148538,68079.0,68078.0,0.08719415]
[1729859328864,0.29904181,68079.0,68078.0,0.00541713]
[1729859332755,0.30173084,68079.0,68078.0,0.00541713]
[1729859332970,0.30173084,68079.0,68078.0,0.00559415]
[1729859333838,0.29904181,68079.0,68078.0,0.00559415]
[1729859334411,0.29904181,68079.0,68078.0,0.00100102]
[1729859334618,0.29904181,68079.0,68078.0,0.00559438]
[1729859336260,0.29904181,68079.0,68078.0,0.00541736]
[1729859338138,0.29904181,68079.0,68078.0,0.00541734]
[1729859341053,0.29904181,68079.0,68078.0,0.00541738]
[1729859341696,0.29904181,68079.0,68078.0,0.0055944]
[1729859343519,0.29904181,68079.0,68078.0,0.00541738]
[1729859344785,0.29904181,68079.0,68078.0,0.0055944]
[1729859345874,0.29904181,68079.0,68078.0,0.00559437]
[1729859346294,0.29904181,68079.0,68078.0,0.08069437]
[1729859346760,0.29904181,68079.0,68078.0,0.08051735]
[1729859346962,0.29904181,68079.0,68078.0,0.08069437]
[1729859347229,0.29904181,68079.0,68078.0,0.08569437]
[1729859347230,0.00165,68079.0,68078.0,0.08569437]
[1729859347659,0.00165,68079.0,68078.0,0.0856941]
[1729859351231,0.00165,68079.0,68078.0,0.08569411]
[1729859352433,0.148538,68079.0,68078.0,0.08569411]
[1729859358008,0.148538,68079.0,68078.0,0.01059411]
[1729859358419,0.148538,68079.0,68078.0,0.01059427]
[1729859358627,0.29904181,68079.0,68078.0,0.00541725]
[1729859361572,0.29904181,68079.0,68078.0,0.00559427]
[1729859361809,0.29904181,68079.0,68078.0,0.00541725]
[1729859365605,0.29904181,68079.0,68078.0,0.000824]
[1729859365759,0.29904181,68079.0,68078.0,0.00541725]
[1729859368916,0.29904181,68079.0,68078.0,0.00559427]
[1729859370585,0.29904181,68079.0,68078.0,0.00541725]
[1729859371404,0.29904181,68079.0,68078.0,0.00559427]
[1729859372816,0.29904181,68079.0,68078.0,0.00100102]
[1729859373021,0.29904181,68079.0,68078.0,0.00559428]
[1729859374544,0.15215381,68079.0,68078.0,0.08869428]
[1729859374748,0.29904181,68079.0,68078.0,0.08869428]
[1729859375464,0.15215381,68079.0,68078.0,0.08869428]
[1729859376314,0.29904181,68079.0,68078.0,0.08869428]
[1729859376529,0.29904181,68079.0,68078.0,0.08410102]
[1729859376763,0.15215381,68079.0,68078.0,0.08869412]
[1729859377837,0.29904181,68079.0,68078.0,0.08869412]
[1729859378280,0.15215381,68079.0,68078.0,0.08869412]
[1729859378492,0.29904181,68079.0,68078.0,0.08869412]
[1729859380049,0.15215381,68079.0,68078.0,0.08869412]
[1729859381757,0.29904181,68079.0,68078.0,0.08869412]
[1729859387630,0.00165,68079.0,68078.0,0.08869412]
[1729859387839,0.00165,68079.0,68078.0,0.09369412]
[1729859396203,0.148538,68079.0,68078.0,0.09369412]
[1729859396831,0.00165,68079.0,68078.0,0.09369412]
[1729859398376,0.00165,68079.0,68078.0,0.0935171]
[1729859398639,0.00165,68079.0,68078.0,0.09369412]
[1729859400005,0.00165,68079.0,68078.0,0.08910102]
[1729859400235,0.00165,68079.0,68078.0,0.09369409]
[1729859400463,0.148538,68079.0,68078.0,0.09369409]
[1729859400681,0.148538,68079.0,68078.0,0.01059409]
[1729859402003,0.00165,68079.0,68078.0,0.12484723]
[1729859402707,0.00165,68079.0,68078.0,0.21854723]
[1729859402923,0.148538,68079.0,68078.0,0.21854723]
[1729859403144,0.00165,68079.0,68078.0,0.21854723]
[1729859403798,0.00165,68079.0,68078.0,0.21837021]
[1729859404025,0.00165,68079.0,68078.0,0.21854723]
[1729859405548,0.00165,68079.0,68078.0,0.29504723]
[1729859407316,0.00165,68079.0,68078.0,0.603155]
[1729859407526,0.00165,68079.0,68078.0,0.29504723]
[1729859407732,0.00165,68079.0,68078.0,0.52353274]
[1729859407945,0.00165,68079.0,68078.0,0.67042274]
[1729859408374,0.00165,68079.0,68078.0,0.52353274]
[1729859408597,0.00165,68079.0,68078.0,0.3610877]
[1729859409019,0.00165,68079.0,68078.0,0.5079777]
[1729859409447,0.00165,68079.0,68078.0,0.44193723]
[1729859410090,0.00165,68079.0,68078.0,0.18079409]
[1729859410296,0.00165,68079.0,68078.0,0.29504723]
[1729859410718,0.00165,68079.0,68078.0,0.44193723]
[1729859410947,0.00165,68079.0,68078.0,0.4859387]
[1729859411591,0.00165,68079.0,68078.0,0.44193723]
[1729859412028,0.00165,68079.0,68078.0,0.29504723]
[1729859412473,0.00165,68079.0,68078.0,0.44193723]
[1729859413570,0.00165,68079.0,68078.0,0.29504723]
[1729859414484,0.00165,68079.0,68078.0,0.29504684]
[1729859415329,0.00165,68079.0,68078.0,0.1807937]
[1729859415531,0.00165,68079.0,68078.0,0.29504684]
[1729859416224,0.00165,68079.0,68078.0,0.0105937]
[1729859416450,0.148538,68079.0,68078.0,0.0105937]
[1729859416891,0.148538,68079.0,68078.0,0.01041668]
[1729859416892,0.00165,68079.0,68078.0,0.01041668]
[1729859417100,0.00165,68079.0,68078.0,0.0105937]
[1729859417313,0.00165,68079.0,68078.0,0.12484684]
[1729859418223,0.00165,68079.0,68078.0,0.124847]
[1729859421757,0.38954181,68079.0,68078.0,0.00541684]
[1729859421995,0.38954181,68079.0,68078.0,0.0054172]
[1729859426296,0.46654181,68079.0,68078.0,0.0054172]
[1729859426530,0.71061793,68079.0,68078.0,0.000824]
[1729859426763,0.96649174,68079.0,68078.0,0.000824]
[1729859428962,0.86641821,68074.0,68073.0,0.000824]
[1729859429393,0.78597596,68074.0,68073.0,0.000824]
[1729859430102,0.80627714,68074.0,68073.0,0.000824]
[1729859430427,0.7842918,68074.0,68073.0,0.000824]
[1729859430657,0.93479561,68074.0,68073.0,0.000824]
[1729859430895,0.89085994,68074.0,68073.0,0.000824]
[1729859431098,0.95678095,68074.0,68073.0,0.000824]
[1729859431318,0.89085994,68074.0,68073.0,0.000824]
[1729859431541,0.93478327,68074.0,68073.0,0.000824]
[1729859431748,0.93660625,68074.0,68073.0,0.000824]
[1729859432178,0.89268292,68074.0,68073.0,0.000824]
[1729859432837,0.93477219,68074.0,68073.0,0.000824]
[1729859433516,0.89085994,68074.0,68073.0,0.000824]
[1729859433742,1.01693606,68074.0,68073.0,0.000824]
[1729859434184,1.25314852,68074.0,68073.0,0.000824]
[1729859434394,1.01693606,68074.0,68073.0,0.000824]
[1729859435001,1.01511308,68074.0,68073.0,0.000824]
[1729859435415,1.08091693,68074.0,68073.0,0.000824]
[1729859436479,1.01511308,68074.0,68073.0,0.000824]
[1729859437559,1.05896012,68074.0,68073.0,0.000824]
[1729859438325,1.01511308,68074.0,68073.0,0.000824]
[1729859439549,1.02099308,68074.0,68073.0,0.000824]
[1729859442023,1.03632553,68074.0,68073.0,0.000824]
[1729859444471,0.64413842,68074.0,68073.0,0.000824]
[1729859444758,0.64731544,68074.0,68073.0,0.000824]
[1729859444971,0.76156858,68074.0,68073.0,0.000824]
[1729859446010,0.75656858,68074.0,68073.0,0.000824]
[1729859446229,0.64231544,68074.0,68073.0,0.000824]
[1729859446462,0.33303544,68074.0,68073.0,0.000824]
[1729859447565,0.44728858,68074.0,68073.0,0.000824]
[1729859447982,0.54728858,68074.0,68073.0,0.000824]
[1729859449839,0.57028858,68074.0,68073.0,0.000824]
[1729859457105,0.57211156,68074.0,68073.0,0.000824]
[1729859457320,0.57028858,68074.0,68073.0,0.000824]
[1729859460381,0.68454172,68074.0,68073.0,0.000824]
[1729859460600,0.6863647,68074.0,68073.0,0.000824]
[1729859460843,0.57028858,68074.0,68073.0,0.000824]
[1729859461526,0.57211156,68074.0,68073.0,0.000824]
[1729859461731,0.57028858,68074.0,68073.0,0.000824]
[1729859461958,0.72079239,68074.0,68073.0,0.000824]
[1729859462197,0.68454172,68074.0,68073.0,0.000824]
[1729859462418,0.68954172,68074.0,68073.0,0.000824]
[1729859462640,0.8011647,68074.0,68073.0,0.000824]
[1729859462879,1.16199678,68074.0,68073.0,0.000824]
[1729859463089,1.16199678,68074.0,68067.0,0.000824]
[1729859463090,0.02982298,68068.0,68067.0,0.000824]
[1729859463336,0.8298331,68068.0,68067.0,0.000824]
[1729859463539,0.93763249,68068.0,68067.0,0.000824]
[1729859463748,0.93580951,68068.0,68067.0,0.000824]
[1729859463957,0.93763249,68068.0,68067.0,0.000824]
[1729859464202,1.03465918,68068.0,68067.0,0.000824]
[1729859464455,0.97383479,68068.0,68067.0,0.000824]
[1729859464658,0.8818081,68068.0,68067.0,0.000824]
[1729859465343,0.87998512,68068.0,68067.0,0.000824]
[1729859465577,1.11668094,68068.0,68067.0,0.000824]
[1729859465808,1.11485796,68068.0,68067.0,0.000824]
[1729859466023,1.11668094,68068.0,68067.0,0.000824]
[1729859466234,1.38143789,68068.0,68067.0,0.000824]
[1729859466439,1.17759591,68068.0,68067.0,0.000824]
[1729859466647,1.26540849,68068.0,68067.0,0.000824]
[1729859466850,1.26541005,68068.0,68067.0,0.000824]
[1729859467345,1.13293188,68068.0,68067.0,0.000824]
[1729859467571,1.28715769,68068.0,68067.0,0.000824]
[1729859467791,1.35677617,68068.0,68067.0,0.000824]
[1729859468031,1.29170706,68068.0,68067.0,0.000824]
[1729859468502,1.37993706,68068.0,68067.0,0.000824]
[1729859468714,1.37993706,68068.0,68067.0,1e-06]
[1729859469350,0.284916,68066.0,68055.0,0.000824]
[1729859469556,1.19533554,68066.0,68055.0,0.000824]
[1729859469799,1.19264651,68066.0,68055.0,0.000824]
[1729859470026,1.35848277,68066.0,68055.0,0.000824]
[1729859471314,1.44671277,68066.0,68055.0,0.000824]
[1729859471980,1.44671277,68066.0,68065.0,1e-06]
[1729859472195,0.42785998,68056.0,68055.0,0.000824]
[1729859472410,0.82987007,68056.0,68055.0,0.000824]
[1729859472644,0.97646836,68056.0,68055.0,0.000824]
[1729859472874,1.08634581,68056.0,68055.0,0.000824]
[1729859473085,0.97464538,68056.0,68055.0,0.000824]
[1729859473511,1.12514919,68056.0,68055.0,0.000824]
[1729859473929,1.33945531,68056.0,68055.0,0.000824]
[1729859474139,0.146972,68040.0,68039.0,0.30124961]
[1729859474375,0.51172895,68040.0,68039.0,0.30124961]
[1729859474598,0.51172895,68040.0,68039.0,0.0798]
[1729859475692,0.53217624,68040.0,68039.0,0.0798]
[1729859477002,0.55517624,68040.0,68039.0,0.0798]
[1729859478289,0.023,68039.0,68035.0,0.0814]
[1729859478512,0.43473795,68036.0,68035.0,0.0814]
[1729859478779,0.43473795,68036.0,68034.0,0.0947]
[1729859478780,0.146989,68032.0,68031.0,0.0814]
[1729859478983,0.43743498,68032.0,68031.0,0.0814]
[1729859479187,0.43474595,68032.0,68031.0,0.0814]
[1729859479900,0.43474595,68032.0,68020.0,0.22144961]
[1729859479901,0.15050381,68032.0,68020.0,0.22144961]
[1729859480132,0.00268903,68043.0,68031.0,0.11425314]
[1729859480334,0.32144961,68038.0,68035.0,0.11425314]
[1729859480514,0.15050381,68037.0,68035.0,0.11425314]
[1729859480762,0.29748281,68037.0,68035.0,0.11425314]
[1729859480970,0.15050381,68037.0,68032.0,0.11425314]
[1729859481421,0.29748281,68037.0,68032.0,0.11425314]
[1729859482653,0.29748281,68037.0,68031.0,0.000825]
[1729859482741,0.146981,68036.0,68031.0,0.000825]
[1729859482964,0.15050381,68035.0,68033.0,0.0759]
[1729859483674,0.293939,68042.0,68033.0,0.16601327]
[1729859483901,0.54444381,68041.0,68036.0,0.0808]
[1729859484118,0.146972,68040.0,68036.0,0.0808]
[1729859484352,0.146977,68038.0,68036.0,0.0808]
[1729859484575,0.29748081,68038.0,68036.0,0.0808]
[1729859485048,0.22644961,68063.0,68039.0,0.092]
[1729859485049,0.246966,68043.0,68039.0,0.092]
[1729859485310,0.15050381,68042.0,68040.0,0.0803]
[1729859485551,0.14697,68041.0,68040.0,0.0803]
[1729859485800,0.29747381,68041.0,68040.0,0.0803]
[1729859487190,0.15050381,68041.0,68040.0,0.0803]
[1729859487412,0.29747381,68041.0,68040.0,0.0803]
[1729859494122,0.146983,68035.0,68034.0,0.0762]
[1729859494337,0.29748681,68035.0,68034.0,0.0762]
[1729859494566,0.30017584,68035.0,68034.0,0.0762]
[1729859495270,0.146989,68032.0,68031.0,0.000825]
[1729859495490,0.29749281,68032.0,68031.0,0.00542139]
[1729859495716,0.29749281,68032.0,68031.0,0.000825]
[1729859495941,0.30018184,68032.0,68031.0,0.000825]
[1729859496159,0.29749281,68032.0,68031.0,0.000825]
[1729859496594,0.15050381,68032.0,68031.0,0.010825]
[1729859496814,0.29749281,68032.0,68031.0,0.015825]
[1729859497212,0.29749281,68032.0,68031.0,0.02042136]
[1729859497472,0.15050381,68032.0,68031.0,0.02042136]
[1729859498135,0.15050381,68032.0,68031.0,0.0395935]
[1729859498552,0.15050381,68032.0,68031.0,0.03499714]
[1729859498762,0.15050381,68032.0,68031.0,0.0395935]
[1729859498970,0.15050381,68032.0,68031.0,0.1193935]
[1729859499200,0.15050381,68032.0,68031.0,0.11479714]
[1729859499419,0.15050381,68032.0,68031.0,0.1193935]
[1729859499637,0.293921,68046.0,68031.0,0.1193935]
[1729859499638,0.1,68044.0,68043.0,0.005]
[1729859499851,0.25304722,68044.0,68043.0,0.005]
[1729859500082,0.27039833,68044.0,68043.0,0.005]
[1729859500528,0.25035819,68044.0,68043.0,0.005]
[1729859500729,0.25035819,68044.0,68043.0,0.02368]
[1729859501179,0.15035819,68044.0,68043.0,0.01]
[1729859502883,0.15035819,68044.0,68043.0,0.005]
[1729859503061,0.15035819,68044.0,68043.0,0.01]
[1729859503289,0.15035819,68044.0,68043.0,0.005]
[1729859503511,0.15035819,68044.0,68043.0,0.01]
[1729859504482,0.15035819,68044.0,68043.0,0.03327564]
[1729859505065,0.15035819,68044.0,68043.0,0.01459564]
[1729859506163,0.15035819,68044.0,68043.0,0.01]
[1729859506376,0.15035819,68044.0,68043.0,0.01459564]
[1729859506804,0.15200819,68044.0,68043.0,0.01459564]
[1729859510291,0.15200819,68044.0,68043.0,0.01459573]
[1729859510709,0.15200819,68044.0,68043.0,0.01]
[1729859511131,0.15469722,68044.0,68043.0,0.01]
[1729859511804,0.15200819,68044.0,68043.0,0.01]
[1729859512030,0.15469722,68044.0,68043.0,0.01]
[1729859512263,0.15200819,68044.0,68043.0,0.01]
[1729859513445,0.15469722,68044.0,68043.0,0.01]
[1729859513665,0.30166022,68044.0,68043.0,0.01]
[1729859513895,0.15469722,68044.0,68043.0,0.01]
[1729859515006,0.15200819,68044.0,68043.0,0.01]
[1729859516104,0.29897119,68044.0,68043.0,0.01]
[1729859516590,0.15200819,68044.0,68043.0,0.01]
[1729859517049,0.29897119,68044.0,68043.0,0.01]
[1729859517506,0.15200819,68044.0,68043.0,0.01]
[1729859518724,0.29897119,68044.0,68043.0,0.01]
[1729859518963,0.15200819,68044.0,68043.0,0.01]
[1729859519881,0.29897119,68044.0,68043.0,0.01]
[1729859520115,0.15200819,68044.0,68043.0,0.01]
[1729859520590,0.30166022,68044.0,68043.0,0.01]
[1729859521088,0.15469722,68044.0,68043.0,0.01]
[1729859521506,0.15200819,68044.0,68043.0,0.01]
[1729859523390,0.15469722,68044.0,68043.0,0.01]
[1729859523833,0.15200819,68044.0,68043.0,0.01]
[1729859526335,0.00165,68044.0,68043.0,0.23144961]
[1729859526530,0.00165,68044.0,68043.0,0.24906832]
[1729859527136,0.00165,68044.0,68043.0,0.24906812]
[1729859527345,0.00165,68044.0,68043.0,0.47893312]
[1729859527567,0.00165,68044.0,68043.0,0.4862859]
[1729859527956,0.00165,68044.0,68043.0,0.4882859]
[1729859528188,0.00165,68044.0,68043.0,0.53234785]
[1729859528393,0.00165,68044.0,68043.0,0.48093312]
[1729859528624,0.00165,68044.0,68043.0,0.47893312]
[1729859529042,0.00165,68044.0,68043.0,0.52295626]
[1729859529549,0.00165,68044.0,68043.0,0.76318103]
[1729859529773,0.00165,68044.0,68043.0,0.76400503]
[1729859529993,0.00165,68044.0,68043.0,0.99248367]
[1729859530204,0.22144961,68055.0,68054.0,0.57082734]
[1729859530415,0.22144961,68055.0,68054.0,0.63246138]
[1729859530633,0.22144961,68055.0,68054.0,0.64246138]
[1729859530869,0.001648,68058.0,68057.0,0.166935]
[1729859531099,0.001648,68058.0,68057.0,0.35168188]
[1729859531533,0.001648,68058.0,68057.0,0.34433045]
[1729859531748,0.001648,68058.0,68057.0,0.36350259]
[1729859533801,0.001648,68058.0,68057.0,0.35350259]
[1729859534025,0.001648,68058.0,68057.0,0.36350259]
[1729859534482,0.001648,68058.0,68057.0,0.21656759]
[1729859534704,0.001648,68058.0,68057.0,0.36350259]
[1729859545943,0.001648,68058.0,68057.0,0.78046942]
[1729859546161,0.001648,68058.0,68057.0,0.76403438]
[1729859546387,0.001648,68058.0,68057.0,0.75668457]
[1729859546829,0.001648,68058.0,68057.0,0.85668457]
[1729859547040,0.001648,68058.0,68057.0,0.81358695]
[1729859547297,0.001648,68058.0,68057.0,0.81158695]
[1729859547532,0.001648,68058.0,68057.0,0.81893528]
[1729859548192,0.001648,68058.0,68057.0,5.81893528]
[1729859548901,0.001648,68058.0,68057.0,5.8069915]
[1729859549100,0.001648,68058.0,68057.0,5.81893294]
[1729859552459,0.001648,68058.0,68057.0,5.81893295]
[1729859553119,0.001648,68058.0,68057.0,5.82093295]
[1729859553537,0.001648,68058.0,68057.0,5.81893295]
[1729859555618,0.001648,68058.0,68057.0,5.81158436]
[1729859556238,0.001648,68058.0,68057.0,5.81358436]
[1729859559117,0.001648,68058.0,68057.0,5.81158436]
[1729859559387,0.001648,68058.0,68057.0,5.81358436]
[1729859560807,0.001648,68058.0,68057.0,5.81158436]
[1729859561834,0.001648,68058.0,68057.0,5.97740519]
[1729859562524,0.001648,68058.0,68057.0,5.87426799]
[1729859562992,0.001648,68058.0,68057.0,5.87626799]
[1729859563453,0.001648,68058.0,68057.0,5.76201576]
[1729859563909,0.001648,68058.0,68057.0,5.76001576]
[1729859564119,0.001648,68058.0,68057.0,5.76201576]
[1729859564331,0.001648,68058.0,68057.0,5.76001576]
[1729859566437,0.001648,68058.0,68057.0,5.76201576]
[1729859566653,0.001648,68058.0,68057.0,5.76001576]
[1729859566831,0.001648,68058.0,68057.0,5.87626799]
[1729859567103,0.001648,68058.0,68057.0,5.96491018]
[1729859567328,0.22144961,68070.0,68069.0,0.47106123]
[1729859567567,0.22144961,68070.0,68069.0,0.6448379]
[1729859568023,0.00165,68074.0,68073.0,0.02]
[1729859568252,0.00165,68074.0,68073.0,0.28574609]
[1729859568481,0.00165,68074.0,68073.0,0.33726114]
[1729859570340,0.00165,68074.0,68073.0,0.17149386]
[1729859570592,0.00165,68074.0,68073.0,0.28414553]
[1729859574239,0.00165,68074.0,68073.0,0.27955267]
[1729859574508,0.00165,68074.0,68073.0,0.28414551]
[1729859575634,0.00165,68074.0,68073.0,0.28708327]
[1729859575854,0.00165,68074.0,68073.0,0.28414551]
[1729859577858,0.00165,68074.0,68073.0,0.27955267]
[1729859578092,0.00165,68074.0,68073.0,0.28414549]
[1729859578281,0.00165,68074.0,68073.0,0.44991277]
[1729859581010,0.00165,68074.0,68073.0,0.16649382]
[1729859581928,0.00165,68074.0,68073.0,0.01459282]
[1729859582183,0.09195,68074.0,68073.0,0.01459282]
[1729859582404,0.24245381,68074.0,68073.0,0.01459282]
[1729859582614,0.24245381,68074.0,68073.0,0.00959282]
[1729859582846,0.24245381,68074.0,68073.0,0.01959282]
[1729859584134,0.32305381,68074.0,68073.0,0.01959282]
[1729859584351,0.32305381,68074.0,68073.0,0.00959282]
[1729859584565,0.32305381,68074.0,68073.0,0.01959282]
[1729859584782,0.32305381,68074.0,68073.0,0.00959282]
[1729859585080,0.32305381,68074.0,68073.0,0.01959282]
[1729859585287,0.32305381,68074.0,68073.0,0.005]
[1729859586191,0.32305381,68074.0,68073.0,0.015]
[1729859586641,0.32305381,68074.0,68073.0,0.005]
[1729859586855,0.32305381,68074.0,68073.0,0.015]
[1729859587768,0.32305381,68074.0,68073.0,0.005]
[1729859587978,0.32305381,68074.0,68073.0,0.015]
[1729859588207,0.32305381,68074.0,68073.0,0.01311639]
[1729859588644,0.32305381,68074.0,68073.0,0.01252801]
[1729859591044,0.32305381,68074.0,68073.0,0.00252801]
[1729859591938,0.32305381,68074.0,68073.0,0.00752801]
[1729859593047,0.32305381,68074.0,68073.0,0.00252801]
[1729859593297,0.0956,68072.0,68070.0,0.00252801]
[1729859593503,0.15319284,68071.0,68070.0,0.00752801]
[1729859593730,0.30009784,68071.0,68070.0,0.00752801]
[1729859594165,0.30009784,68071.0,68070.0,0.00252801]
[1729859595054,0.39659784,68071.0,68070.0,0.00252801]
[1729859595260,0.39390881,68071.0,68070.0,0.00252801]
[1729859596819,0.39390881,68071.0,68070.0,0.00752801]
[1729859597926,0.39390881,68071.0,68070.0,0.005]
[1729859598149,0.39040881,68071.0,68070.0,0.00752801]
[1729859598822,0.146907,68070.0,68069.0,0.005]
[1729859599056,0.39329984,68070.0,68069.0,0.005]
[1729859599275,0.39061081,68070.0,68069.0,0.005]
[1729859600635,0.146909,68069.0,68068.0,0.01252801]
[1729859600860,0.30010184,68069.0,68068.0,0.01252801]
[1729859601300,0.30010184,68069.0,68068.0,0.00252801]
[1729859601958,0.30010184,68069.0,68068.0,0.00752801]
[1729859602179,0.30010184,68069.0,68068.0,0.00252801]
[1729859602403,0.30010184,68069.0,68068.0,0.00335201]
[1729859603743,0.30010184,68069.0,68068.0,0.01335201]
[1729859604460,0.30010184,68069.0,68068.0,0.00335201]
[1729859604688,0.30010184,68069.0,68068.0,0.01335201]
[1729859604920,0.30010184,68069.0,68068.0,0.00335201]
[1729859605137,0.30010184,68069.0,68068.0,0.01335201]
[1729859605382,0.30010184,68069.0,68068.0,0.00335201]
[1729859605565,0.30010184,68069.0,68068.0,0.01335201]